[Event "FIDE Womens Grand Swiss 2023"]
[Site "Douglas/Isle of Man"]
[Date "2023.11.02"]
[Round "8.23"]
[White "Kosteniuk, Alexandra"]
[Black "Kanyamarala, Trisha"]
[Result "1-0"]
[ECO "B08"]
[WhiteElo "2523"]
[BlackElo "2184"]
[Annotator "ChessBase"]
[PlyCount "109"]
[EventDate "2023.10.04"]
[EventType "swiss"]
[EventCountry "GBR"]
[SourceTitle "playchess.com"]
[Source "ChessBase"]
[SourceQuality "1"]
[TimeControl "40/6000+30:20/3000+30:900+30"]

1. e4 {[%emt 0:10:04]} c5 {[%emt 0:10:14]} 2. Nf3 {[%emt 0:00:05]} d6 {[%emt 0:00:08]} 3. d4 {[%emt 0:00:05]} cxd4 {[%emt 0:00:07]} 4. Qxd4 {[%emt 0:00:04]} Nc6 {[%emt 0:00:13]} 5. Qd3 {[%emt 0:00:04]} g6 {[%emt 0:00:54]} 6. Be2 {[%emt 0:01:13]} Bg7 {[%emt 0:00:40]} 7. Nc3 {[%emt 0:00:23]} Nf6 {[%emt 0:01:30]} 8. O-O {[%emt 0:00:17]} O-O {[%emt 0:00:29]} 9. Nd5 {[%emt 0:00:12]} Nd7 {[%emt 0:00:36]} 10. c3 {[%emt 0:00:05]} Nc5 {[%emt 0:02:06]} 11. Qc2 {[%emt 0:00:07]} e6 {[%emt 0:00:21]} 12. Nf4 {[%emt 0:00:13]} Qc7 {[%emt 0:12:27]} 13. Rd1 {[%emt 0:02:35]} Rd8 {[%emt 0:08:43]} 14. Nd4 {[%emt 0:02:54]} Qe7 {[%emt 0:11:07]} 15. Be3 {[%emt 0:03:14]} Nd7 {[%emt 0:09:18]} 16. Nb5 {[%emt 0:06:37]} Nf6 {[%emt 0:03:00]} 17. Qa4 {[%emt 0:14:23]} a6 {[%emt 0:09:21]} 18. Bb6 {[%emt 0:01:00]} Rd7 {[%emt 0:00:52]} 19. Na3 {[%emt 0:04:41]} Rb8 {[%emt 0:03:13]} 20. Nd3 {[%emt 0:12:07]} Qf8 {[%emt 0:07:31]} 21. Bf3 {[%emt 0:01:29]} e5 {[%emt 0:04:05]} 22. c4 {[%emt 0:06:45]} Nd4 {[%emt 0:08:09]} 23. Bxd4 {[%emt 0:02:53]} exd4 {[%emt 0:00:05]} 24. Nb4 {[%emt 0:00:15]} b5 {[%emt 0:03:59]} 25. cxb5 {[%emt 0:03:40]} axb5 {[%emt 0:00:15]} 26. Qb3 {[%emt 0:00:39]} Bb7 {[%emt 0:02:19]} 27. Nd5 {[%emt 0:01:21]} Rdd8 {[%emt 0:08:03]} 28. Nxb5 {[%emt 0:06:23]} Nxd5 {[%emt 0:01:41]} 29. exd5 {[%emt 0:00:25]} Ba6 {[%emt 0:00:22]} 30. a4 {[%emt 0:00:20]} Bxb5 {[%emt 0:00:39]} 31. axb5 {[%emt 0:00:05]} Qe8 {[%emt 0:00:20]} 32. b6 {[%emt 0:03:37]} Rb7 {[%emt 0:00:33]} 33. Re1 {[%emt 0:06:32]} Qd7 {[%emt 0:00:17]} 34. Ra6 {[%emt 0:00:26]} Rdb8 {[%emt 0:00:21]} 35. Rc1 {[%emt 0:00:50]} Bf6 {[%emt 0:00:46]} 36. Be2 {[%emt 0:06:48]} Qd8 {[%emt 0:01:03]} 37. Rc6 {[%emt 0:00:14]} Qe7 {[%emt 0:00:23]} 38. Bf1 {[%emt 0:00:29]} Qe5 {[%emt 0:01:59]} 39. g3 {[%emt 0:11:22]} h5 {[%emt 0:00:47]} 40. Qb4 {[%emt 0:01:29]} Be7 {[%emt 0:00:31]} 41. Qc4 {[%emt 0:27:01]} Bd8 {[%emt 0:31:45]} 42. Rc8 {[%emt 0:01:46]} Kh7 {[%emt 0:07:03]} 43. Ra7 {[%emt 0:08:35]} Bxb6 {[%emt 0:03:39]} 44. Rxb8 {[%emt 0:00:13]} Rxb8 {[%emt 0:00:06]} 45. Rxf7+ {[%emt 0:00:05]} Kg8 {[%emt 0:00:20]} 46. Rf3 {[%emt 0:05:53]} Bc5 {[%emt 0:01:22]} 47. Qa4 {[%emt 0:01:45]} Qe4 {[%emt 0:02:15]} 48. Rf4 {[%emt 0:00:21]} Qe7 {[%emt 0:00:27]} 49. Qc2 {[%emt 0:00:28]} Kg7 {[%emt 0:01:36]} 50. Bd3 {[%emt 0:00:54]} Qe1+ {[%emt 0:02:13]} 51. Kg2 {[%emt 0:00:17]} Qe8 {[%emt 0:00:06]} 52. Re4 {[%emt 0:00:52]} Qf7 {[%emt 0:02:09]} 53. Re6 {[%emt 0:00:14]} Rf8 {[%emt 0:03:22]} 54. Qe2 {[%emt 0:02:19]} g5 {[%emt 0:00:46]} 55. Re7 {[%emt 0:00:07]} 1-0

[Event "FIDE Womens Grand Swiss 2023"]
[Site "Douglas/Isle of Man"]
[Date "2023.11.02"]
[Round "8.24"]
[White "Nassr, Lina"]
[Black "Divya Deshmukh"]
[Result "0-1"]
[ECO "A35"]
[WhiteElo "2066"]
[BlackElo "2408"]
[Annotator "ChessBase"]
[PlyCount "126"]
[EventDate "2023.10.04"]
[EventType "swiss"]
[EventCountry "GBR"]
[SourceTitle "playchess.com"]
[Source "ChessBase"]
[SourceQuality "1"]
[TimeControl "40/6000+30:20/3000+30:900+30"]

1. d4 {[%emt 0:10:06]} Nf6 {[%emt 0:10:03]} 2. Nf3 {[%emt 0:00:26]} d5 {[%emt 0:00:04]} 3. e3 {[%emt 0:00:21]} c5 {[%emt 0:00:05]} 4. c4 {[%emt 0:02:23]} cxd4 {[%emt 0:00:33]} 5. exd4 {[%emt 0:00:13]} g6 {[%emt 0:02:58]} 6. Qb3 {[%emt 0:02:00]} e6 {[%emt 0:17:08]} 7. Nc3 {[%emt 0:03:33]} Nc6 {[%emt 0:03:24]} 8. cxd5 {[%emt 0:06:18]} Nxd5 {[%emt 0:00:11]} 9. Bb5 {[%emt 0:02:56]} Bg7 {[%emt 0:00:49]} 10. Bg5 {[%emt 0:17:38]} f6 {[%emt 0:08:24]} 11. Nxd5 {[%emt 0:04:52]} exd5 {[%emt 0:00:24]} 12. Be3 {[%emt 0:07:41]} O-O {[%emt 0:02:41]} 13. Rc1 {[%emt 0:03:42]} Bg4 {[%emt 0:14:34]} 14. Be2 {[%emt 0:06:51]} Na5 {[%emt 0:05:50]} 15. Qa4 {[%emt 0:04:17]} a6 {[%emt 0:01:41]} 16. Bd2 {[%emt 0:03:59]} Nc6 {[%emt 0:01:25]} 17. O-O {[%emt 0:02:34]} f5 {[%emt 0:01:54]} 18. Rc5 {[%emt 0:08:10]} Kh8 {[%emt 0:03:18]} 19. Qb3 {[%emt 0:14:18]} Qe7 {[%emt 0:05:43]} 20. Re1 {[%emt 0:04:09]} Nxd4 {[%emt 0:01:21]} 21. Nxd4 {[%emt 0:00:12]} Qxc5 {[%emt 0:00:02]} 22. Ne6 {[%emt 0:02:35]} Qc6 {[%emt 0:00:02]} 23. Nxf8 {[%emt 0:01:21]} Rxf8 {[%emt 0:00:06]} 24. f3 {[%emt 0:00:27]} Bh5 {[%emt 0:00:01]} 25. g4 {[%emt 0:00:51]} Bd4+ {[%emt 0:02:25]} 26. Be3 {[%emt 0:00:27]} Qc5 {[%emt 0:00:04]} 27. Bd1 {[%emt 0:00:56]} Re8 {[%emt 0:00:15]} 28. gxh5 {[%emt 0:00:39]} Bxe3+ {[%emt 0:00:11]} 29. Kg2 {[%emt 0:00:11]} d4 {[%emt 0:01:53]} 30. Qxb7 {[%emt 0:00:41]} gxh5 {[%emt 0:01:21]} 31. Bb3 {[%emt 0:00:10]} Qd6 {[%emt 0:02:55]} 32. Qf7 {[%emt 0:00:51]} Rf8 {[%emt 0:02:16]} 33. Qd5 {[%emt 0:00:24]} Qf6 {[%emt 0:00:26]} 34. Qe6 {[%emt 0:00:29]} Qg7+ {[%emt 0:05:53]} 35. Kh1 {[%emt 0:00:24]} h4 {[%emt 0:00:07]} 36. Qxa6 {[%emt 0:00:48]} h3 {[%emt 0:01:42]} 37. Qf1 {[%emt 0:00:14]} Qh6 {[%emt 0:00:01]} 38. Qc4 {[%emt 0:00:42]} Rd8 {[%emt 0:02:45]} 39. Qc7 {[%emt 0:00:31]} Re8 {[%emt 0:00:23]} 40. Qg3 {[%emt 0:00:33]} Qh5 {[%emt 0:01:34]} 41. Rf1 {[%emt 0:39:31]} f4 {[%emt 0:22:08]} 42. Qg4 {[%emt 0:01:58]} Qxg4 {[%emt 0:00:16]} 43. fxg4 {[%emt 0:00:01]} Rb8 {[%emt 0:00:19]} 44. g5 {[%emt 0:01:34]} Rb6 {[%emt 0:00:06]} 45. Bc2 {[%emt 0:05:28]} Rxb2 {[%emt 0:01:09]} 46. Bf5 {[%emt 0:00:07]} Rxa2 {[%emt 0:00:10]} 47. Bxh3 {[%emt 0:00:08]} Ra5 {[%emt 0:00:02]} 48. Kg2 {[%emt 0:02:55]} Rxg5+ {[%emt 0:01:56]} 49. Kf3 {[%emt 0:00:09]} Rh5 {[%emt 0:00:04]} 50. Kg4 {[%emt 0:02:06]} Rh6 {[%emt 0:01:27]} 51. Rb1 {[%emt 0:00:55]} d3 {[%emt 0:00:05]} 52. Bf1 {[%emt 0:00:45]} d2 {[%emt 0:00:01]} 53. h3 {[%emt 0:00:45]} Rg6+ {[%emt 0:00:44]} 54. Kf3 {[%emt 0:00:31]} Rg1 {[%emt 0:00:20]} 55. Rd1 {[%emt 0:00:25]} Kg7 {[%emt 0:00:05]} 56. Ke4 {[%emt 0:00:40]} Kf6 {[%emt 0:00:22]} 57. Rb1 {[%emt 0:00:29]} Rh1 {[%emt 0:00:25]} 58. Kf3 {[%emt 0:00:33]} Ke5 {[%emt 0:00:16]} 59. Rd1 {[%emt 0:00:34]} Kd4 {[%emt 0:00:25]} 60. Kg2 {[%emt 0:00:24]} Rg1+ {[%emt 0:00:02]} 61. Kf3 {[%emt 0:15:10]} Kc3 {[%emt 0:15:08]} 62. Be2 {[%emt 0:00:55]} Re1 {[%emt 0:00:05]} 63. h4 {[%emt 0:00:31]} Kc2 {[%emt 0:00:06]} 0-1

[Event "FIDE Womens Grand Swiss 2023"]
[Site "Douglas/Isle of Man"]
[Date "2023.11.02"]
[Round "8.25"]
[White "Lee, Alice"]
[Black "Gomez Barrera, Javiera Belen"]
[Result "1/2-1/2"]
[ECO "D35"]
[WhiteElo "2388"]
[BlackElo "2266"]
[Annotator "ChessBase"]
[PlyCount "60"]
[EventDate "2023.10.04"]
[EventType "swiss"]
[EventCountry "GBR"]
[SourceTitle "playchess.com"]
[Source "ChessBase"]
[SourceQuality "1"]
[TimeControl "40/6000+30:20/3000+30:900+30"]

1. d4 {[%emt 0:10:02]} d5 {[%emt 0:10:04]} 2. c4 {[%emt 0:00:04]} e6 {[%emt 0:00:04]} 3. Nc3 {[%emt 0:00:04]} Nf6 {[%emt 0:00:04]} 4. cxd5 {[%emt 0:00:03]} exd5 {[%emt 0:00:06]} 5. Bg5 {[%emt 0:00:04]} c6 {[%emt 0:00:08]} 6. e3 {[%emt 0:00:05]} h6 {[%emt 0:00:10]} 7. Bh4 {[%emt 0:00:09]} Be7 {[%emt 0:00:15]} 8. Bd3 {[%emt 0:00:06]} O-O {[%emt 0:00:12]} 9. Nf3 {[%emt 0:00:05]} Ne4 {[%emt 0:07:38]} 10. Bxe7 {[%emt 0:00:26]} Qxe7 {[%emt 0:00:02]} 11. Qc2 {[%emt 0:03:27]} Re8 {[%emt 0:03:36]} 12. Bxe4 {[%emt 0:03:47]} dxe4 {[%emt 0:00:02]} 13. Nd2 {[%emt 0:00:06]} Bf5 {[%emt 0:01:16]} 14. O-O {[%emt 0:04:04]} Nd7 {[%emt 0:09:44]} 15. Nc4 {[%emt 0:03:28]} Qe6 {[%emt 0:15:28]} 16. Ne2 {[%emt 0:01:07]} Nf6 {[%emt 0:02:47]} 17. Ng3 {[%emt 0:01:57]} Bh7 {[%emt 0:02:21]} 18. b4 {[%emt 0:04:49]} h5 {[%emt 0:01:52]} 19. Na5 {[%emt 0:05:35]} h4 {[%emt 0:06:14]} 20. Ne2 {[%emt 0:00:10]} Nd5 {[%emt 0:00:26]} 21. Nxb7 {[%emt 0:11:48]} h3 {[%emt 0:00:22]} 22. a3 {[%emt 0:03:33]} hxg2 {[%emt 0:08:05]} 23. Rfc1 {[%emt 0:00:12]} Qg4 {[%emt 0:20:31]} 24. Ng3 {[%emt 0:05:24]} Qh3 {[%emt 0:04:35]} 25. Qe2 {[%emt 0:19:32]} Nf6 {[%emt 0:00:42]} 26. Rc5 {[%emt 0:05:33]} Bg6 {[%emt 0:00:02]} 27. Rg5 {[%emt 0:00:55]} Qh4 {[%emt 0:00:33]} 28. Rc5 {[%emt 0:01:24]} Qh3 {[%emt 0:02:02]} 29. Rg5 {[%emt 0:00:05]} Qh4 {[%emt 0:02:53]} 30. Rc5 {[%emt 0:06:40]} Qh3 {[%emt 0:00:34]} 1/2-1/2

[Event "FIDE Womens Grand Swiss 2023"]
[Site "Douglas/Isle of Man"]
[Date "2023.11.03"]
[Round "9.5"]
[White "Goryachkina, Aleksandra"]
[Black "Narva, Mai"]
[Result "0-1"]
[ECO "D37"]
[WhiteElo "2558"]
[BlackElo "2399"]
[Annotator "TA"]
[PlyCount "98"]
[EventDate "2023.10.04"]
[EventType "swiss"]
[EventCountry "GBR"]
[SourceTitle "playchess.com"]
[Source "ChessBase"]
[SourceQuality "1"]
[TimeControl "40/6000+30:20/3000+30:900+30"]

{[%evp 9,98,23,29,20,22,22,38,35,39,38,26,23,40,27,41,37,37,20,38,31,35,17,25,27,37,41,33,45,43,18,25,20,18,15,23,0,0,0,20,0,0,-13,0,0,0,-64,-54,-124,-106,-121,-101,-87,-91,-100,-100,-146,-149,-116,-82,-84,-84,-84,-85,-106,-114,-106,-110,-114,-103,-164,-164,-400,-62,-91,0,-401,-398,-1153,-1153,-1142,-1131,-1112,-1087,-6191,-6107,-29956,-11159,-29968,-29970,-6475,-5202]} 1. d4 {[%emt 0:10:06]} Nf6 {[%emt 0:10:14]} 2. c4 {[%emt 0:00:07]} e6 {[%emt 0:00:16]} 3. Nc3 {[%emt 0:00:13]} d5 {[%emt 0:00:22]} 4. Nf3 {[%emt 0:00:21]} Nbd7 {[%emt 0:00:27]} 5. Bf4 {[%emt 0:00:41]} dxc4 {[%emt 0:01:24]} 6. e3 {[%emt 0:00:18] D37: Queen's Gambit Declined: 5 Bf4.} b5 {[%emt 0:00:39] 6...Bd6 is a critical line.} 7. Nxb5 {[%emt 0:00:25]} Bb4+ {[%emt 0:00:18]} 8. Nc3 {[%emt 0:00:46] White is slightly better.} Nd5 {[%emt 0:00:36]} 9. a3 {[%emt 0:01:13]} (9. Bxc4 Nxc3 10. bxc3 Bxc3+ 11. Ke2 Bxa1 12. Qxa1 Nb6 13. Bb5+ Bd7 $15) 9... Bxc3+ {[%emt 0:00:31]} 10. bxc3 {[%emt 0:00:12]} Nxf4 {[%emt 0:01:17]} 11. exf4 {[%emt 0:00:13] [#]} Bb7 $146 {[%emt 0:13:47]} ({Predecessor:} 11... O-O 12. Bxc4 c5 13. O-O Bb7 14. Be2 Qc7 15. Qd2 Rfd8 16. Rfd1 Nf6 17. Ne5 Ne4 {½-½ Cuenca Jimenez,J (2500)-Alonso Rosell,A (2572) ESP-chT Rapid 2023 (4.1)}) 12. Bxc4 {[%emt 0:04:02]} O-O {[%emt 0:05:02]} 13. Bd3 {[%emt 0:09:19][%cal Od3h7]} Rb8 {[%emt 0:09:06]} 14. O-O {[%emt 0:03:02]} c5 {[%emt 0:08:27]} 15. Re1 {[%emt 0:08:24]} cxd4 {[%emt 0:08:11]} 16. Nxd4 {[%emt 0:05:43]} Nf6 {[%emt 0:04:51]} 17. Qd2 {[%emt 0:03:01][%cal Oc3c4]} Qc7 {[%emt 0:04:18]} 18. Rac1 {[%emt 0:07:12]} Rfd8 {[%emt 0:02:25]} 19. Qe3 {[%emt 0:11:29]} Qd6 {[%emt 0:09:12]} (19... Nd5 {feels hotter.} 20. Qe5 Rbc8 21. Nb5 Qb8) 20. Qe5 {[%emt 0:07:56]} Qxa3 {[%emt 0:09:31]} 21. f5 {[%emt 0:00:45]} (21. Bf1 {simplifies} Nd7 22. Qc7 Qc5 23. Qxc5 Nxc5 24. Ra1) 21... Nd7 $1 {[%emt 0:04:52]} 22. Qg3 {[%emt 0:00:56]} (22. Qe3 $5 {[%cal Rf5e6]} e5 23. Nb5 $11) 22... e5 {[%emt 0:01:20]} 23. f6 {[%emt 0:01:12]} Nxf6 {[%emt 0:01:42][%cal Bd7f6,Bf6h5,Bh5f4][%mdl 32]} (23... g6 $5 {[%cal Re5d4]} 24. Nf5 Nxf6 $11) 24. Nf5 {[%emt 0:06:34][%csl Gf5][%cal Rg3g7]} (24. Qxe5 $5 {[%cal Rd4f5]} Rbc8 25. Bf1 $11) 24... g6 {[%emt 0:02:44]} 25. Bc2 {[%emt 0:11:21]} Re8 {[%emt 0:06:23]} 26. Qg5 {[%emt 0:03:55]} Nh5 {[%emt 0:00:44]} 27. Rb1 {[%emt 0:05:23]} (27. Rcd1 $11 Qxc3 28. Rc1) 27... f6 $1 $15 {[%emt 0:03:39]} (27... Qxc3 28. Bb3 $11) 28. Qg4 {[%emt 0:01:54] [#]} (28. Qh6 $15 Qf8 29. Qxf8+ Rxf8 30. Ne3) 28... Nf4 $1 $17 {[%emt 0:01:04]} ({But not} 28... Qxc3 $6 29. Nd6 Re7 30. Be4 $11) 29. Ne3 {[%emt 0:03:07]} Bc6 {[%emt 0:00:55]} 30. h4 {[%emt 0:02:01][%cal Oh4h5]} h5 {[%emt 0:00:29]} ({Much weaker is} 30... Qxc3 $6 31. h5 $11) 31. Qd1 {[%emt 0:00:26]} Rbd8 {[%emt 0:00:27]} ({Don't play} 31... Qxc3 $6 32. Bxg6 Red8 33. Rxb8 Rxb8 34. Bf5 $11) 32. Bb3+ {[%emt 0:00:16] [#]} (32. Qc1 $142 Qe7 33. Rb2) 32... Kg7 $1 {[%emt 0:00:10] Black has more active pieces.} 33. Qc2 {[%emt 0:00:04]} Qc5 {[%emt 0:00:29] And now ...Rd3 would win.} 34. Ba4 {[%emt 0:00:46]} Re7 {[%emt 0:00:19][%cal Be8e7,Be7d7,Bd7d4][%mdl 32]} 35. Bxc6 {[%emt 0:02:10]} Qxc6 {[%emt 0:00:05]} 36. g3 {[%emt 0:00:41]} Nd3 $36 {[%emt 0:00:31][%mdl 2048] Black is really pushing.} 37. Red1 {[%emt 0:00:16]} Red7 {[%emt 0:00:25]} 38. c4 {[%emt 0:00:35]} Rd4 {[%emt 0:00:38]} 39. Qa2 {[%emt 0:01:03]} (39. Qb3 $17 {might work better.}) 39... R8d7 $19 {[%emt 0:00:49]} 40. Qa3 $2 {[%emt 0:01:12]} (40. Qe2 {is a better defense.}) 40... Qd6 $2 {[%emt 0:01:00]} ({Better is} 40... Qf3 $19 41. Qa2 f5) 41. Ra1 {[%emt 0:24:39]} Qc6 $2 {[%emt 0:34:43][%mdl 8192]} (41... Qc7 $17 42. Qa6 Nc5) 42. Rab1 $1 {[%emt 0:13:41]} Qf3 {[%emt 0:01:05]} 43. Rd2 {[%emt 0:02:43] [#]} (43. Qa2) 43... Nxf2 $1 {[%emt 0:04:53][%mdl 576] Remove Defender} 44. Rxf2 {[%emt 0:01:46] [#]} Rd1+ $1 {[%emt 0:02:04][%mdl 512]} 45. Nxd1 {[%emt 0:02:36]} (45. Rxd1 Rxd1+) 45... Qxa3 {[%emt 0:00:08]} 46. Kh2 {[%emt 0:00:14]} e4 {[%emt 0:01:17][%cal Be5e4,Be4e3][%mdl 32]} 47. Rfb2 {[%emt 0:03:01]} e3 {[%emt 0:00:41] ( -> ...Qd3)} 48. c5 {[%emt 0:02:12]} Qxc5 {[%emt 0:00:32]} 49. Re2 {[%emt 0:00:10]} Qc4 {[%emt 0:00:38] Weighted Error Value: White=0.63/Black=0.17 (very precise)} 0-1

[Event "FIDE Womens Grand Swiss 2023"]
[Site "Douglas/Isle of Man"]
[Date "2023.11.03"]
[Round "9.21"]
[White "Mkrtchyan, Mariam"]
[Black "Hoang, Thanh Trang"]
[Result "1-0"]
[ECO "A88"]
[WhiteElo "2343"]
[BlackElo "2398"]
[Annotator "RC"]
[PlyCount "77"]
[EventDate "2023.10.04"]
[EventType "swiss"]
[EventCountry "GBR"]
[SourceTitle "playchess.com"]
[Source "ChessBase"]
[SourceQuality "1"]
[TimeControl "40/6000+30:20/3000+30:900+30"]

1. Nf3 {[%emt 0:10:03]} f5 {[%emt 0:10:28]} 2. g3 {[%emt 0:00:08]} Nf6 {[%emt 0:00:13]} 3. Bg2 {[%emt 0:00:05]} g6 {[%emt 0:00:25]} 4. d4 {[%emt 0:00:51]} Bg7 {[%emt 0:00:18]} 5. O-O {[%emt 0:00:27]} O-O {[%emt 0:00:16]} 6. c4 {[%emt 0:00:01]} d6 {[%emt 0:00:23]} 7. Nc3 {[%emt 0:00:07]} c6 {[%emt 0:00:52]} 8. Qc2 {[%emt 0:00:06]} Na6 {[%emt 0:01:27]} 9. Rb1 {[%emt 0:00:05]} Qe8 {[%emt 0:03:13]} 10. b4 {[%emt 0:01:09]} Nc7 {[%emt 0:05:43]} 11. b5 {[%emt 0:00:15]} cxb5 {[%emt 0:04:45]} 12. cxb5 {[%emt 0:00:14]} Kh8 {[%emt 0:02:49]} 13. a4 {[%emt 0:01:19]} Rb8 {[%emt 0:03:11]} 14. Ba3 {[%emt 0:04:59]} Be6 {[%emt 0:04:08]} 15. Ng5 {[%emt 0:03:17]} Bg8 {[%emt 0:03:38]} 16. e4 {[%emt 0:04:35]} fxe4 {[%emt 0:07:24]} 17. Ncxe4 {[%emt 0:01:43]} Nxe4 {[%emt 0:01:09]} 18. Qxe4 {[%emt 0:06:52]} Bf6 {[%emt 0:10:27]} 19. Rfc1 {[%emt 0:09:48]} Bd5 {[%emt 0:13:54]} 20. Qh4 {[%emt 0:04:35]} Bxg5 {[%emt 0:01:26]} 21. Qxg5 {[%emt 0:00:02]} Qf7 {[%emt 0:00:56]} 22. f4 {[%emt 0:12:40]} Bxg2 {[%emt 0:07:10]} 23. Rxc7 {[%emt 0:00:04]} Be4 {[%emt 0:10:26]} 24. Rb2 {[%emt 0:08:27]} Rbc8 {[%emt 0:04:40]} 25. Bxd6 {[%emt 0:01:30]} Rxc7 {[%emt 0:00:46]} 26. Bxc7 {[%emt 0:00:01]} Kg8 {[%emt 0:03:40]} 27. Re2 {[%emt 0:10:43]} Qb3 {[%emt 0:01:49]} 28. Qe5 {[%emt 0:00:23]} Bd5 {[%emt 0:01:25]} 29. Qxe7 {[%emt 0:07:28]} Qd1+ {[%emt 0:00:50]} 30. Kf2 {[%emt 0:01:03]} Qxd4+ {[%emt 0:00:27]} 31. Qe3 {[%emt 0:00:14]} Qxa4 {[%emt 0:01:41]} 32. b6 {[%emt 0:04:13]} axb6 {[%emt 0:00:27]} 33. Bxb6 {[%emt 0:03:59]} Bc4 {[%emt 0:02:21]} 34. Qd4 {[%emt 0:02:30]} Qb3 {[%emt 0:01:32]} 35. Rd2 {[%emt 0:07:42]} Re8 {[%emt 0:00:29]} 36. Ba5 {[%emt 0:00:42]} Re7 {[%emt 0:03:01]} 37. Bc3 {[%emt 0:00:29]} Kf8 {[%emt 0:00:29]} 38. Rb2 {[%emt 0:01:46]} Qa4 {[%emt 0:00:37]} 39. Bb4 {[%emt 0:00:26]} 1-0

[Event "FIDE Womens Grand Swiss 2023"]
[Site "Douglas/Isle of Man"]
[Date "2023.11.04"]
[Round "10.1"]
[White "Vaishali, Rameshbabu"]
[Black "Tan, Zhongyi"]
[Result "1-0"]
[ECO "B60"]
[WhiteElo "2448"]
[BlackElo "2517"]
[Annotator "RC"]
[PlyCount "85"]
[EventDate "2023.10.04"]
[EventType "swiss"]
[EventCountry "GBR"]
[SourceTitle "playchess.com"]
[Source "ChessBase"]
[SourceQuality "1"]
[TimeControl "40/6000+30:20/3000+30:900+30"]

1. e4 {[%emt 0:10:35]} c5 {[%emt 0:10:07]} 2. Nf3 {[%emt 0:00:04]} d6 {[%emt 0:00:06]} 3. d4 {[%emt 0:00:06]} cxd4 {[%emt 0:00:08]} 4. Nxd4 {[%emt 0:00:05]} Nf6 {[%emt 0:00:07]} 5. Nc3 {[%emt 0:00:04]} Nc6 {[%emt 0:00:05]} 6. Bg5 {[%emt 0:00:19]} Bd7 {[%emt 0:00:07]} 7. Nxc6 {[%emt 0:02:45]} Bxc6 {[%emt 0:00:14]} 8. Bxf6 {[%emt 0:00:53]} gxf6 {[%emt 0:00:30]} 9. Bb5 {[%emt 0:00:50]} Rg8 {[%emt 0:08:44]} 10. O-O {[%emt 0:03:14]} Qd7 {[%emt 0:00:40]} 11. Bxc6 {[%emt 0:10:30]} bxc6 {[%emt 0:00:08]} 12. f4 {[%emt 0:01:25]} Rb8 {[%emt 0:04:33]} 13. Qf3 {[%emt 0:23:18]} Qg4 {[%emt 0:03:27]} 14. b3 {[%emt 0:06:55]} Rb4 {[%emt 0:21:24]} 15. Rad1 {[%emt 0:11:59]} e6 {[%emt 0:03:04]} 16. Qf2 {[%emt 0:03:32]} f5 {[%emt 0:05:59]} 17. a3 {[%emt 0:05:12]} Rb7 {[%emt 0:00:05]} 18. Rd3 {[%emt 0:01:04]} Be7 {[%emt 0:04:24]} 19. Kh1 {[%emt 0:04:12]} Bh4 {[%emt 0:08:02]} 20. Qd2 {[%emt 0:02:10]} d5 {[%emt 0:00:07]} 21. h3 {[%emt 0:01:46]} Qg6 {[%emt 0:01:39]} 22. exf5 {[%emt 0:03:10]} Qxf5 {[%emt 0:02:36]} 23. Ne2 {[%emt 0:00:18]} e5 {[%emt 0:06:36]} 24. Re3 {[%emt 0:06:25]} Re7 {[%emt 0:00:21]} 25. Qb4 {[%emt 0:00:51]} Qg6 {[%emt 0:10:41]} 26. g4 {[%emt 0:07:46]} h5 {[%emt 0:12:11]} 27. fxe5 {[%emt 0:02:33]} hxg4 {[%emt 0:00:18]} 28. Qb8+ {[%emt 0:00:34]} Kd7 {[%emt 0:00:05]} 29. Qxa7+ {[%emt 0:00:12]} Kc8 {[%emt 0:00:23]} 30. Qa8+ {[%emt 0:00:12]} Kc7 {[%emt 0:00:05]} 31. Qa7+ {[%emt 0:00:07]} Kc8 {[%emt 0:00:03]} 32. Qa6+ {[%emt 0:01:16]} Kc7 {[%emt 0:00:16]} 33. Nf4 {[%emt 0:01:12]} Qh7 {[%emt 0:01:56]} 34. Qa7+ {[%emt 0:01:16]} Kc8 {[%emt 0:00:02]} 35. Qa8+ {[%emt 0:00:08]} Kd7 {[%emt 0:00:25]} 36. Qb7+ {[%emt 0:00:08]} Kd8 {[%emt 0:00:09]} 37. Qb8+ {[%emt 0:00:09]} Kd7 {[%emt 0:00:04]} 38. Qb7+ {[%emt 0:00:03]} Kd8 {[%emt 0:00:05]} 39. Qxc6 {[%emt 0:01:57]} Rc7 {[%emt 0:05:39]} 40. Qxd5+ {[%emt 0:00:17]} Ke8 {[%emt 0:00:16]} 41. Qa8+ {[%emt 0:50:53]} Bd8 {[%emt 0:50:23]} 42. Rd1 {[%emt 0:00:00]} Qh4 {[%emt 0:00:00]} 43. Red3 {[%emt 0:01:42]} 1-0

[Event "FIDE Womens Grand Swiss 2023"]
[Site "Douglas/Isle of Man"]
[Date "2023.11.04"]
[Round "10.2"]
[White "Muzychuk, Anna"]
[Black "Cori T., Deysi"]
[Result "1-0"]
[ECO "B06"]
[WhiteElo "2510"]
[BlackElo "2367"]
[Annotator "ChessBase"]
[PlyCount "83"]
[EventDate "2023.10.04"]
[EventType "swiss"]
[EventCountry "GBR"]
[SourceTitle "playchess.com"]
[Source "ChessBase"]
[SourceQuality "1"]
[TimeControl "40/6000+30:20/3000+30:900+30"]

1. e4 {[%emt 0:10:03]} g6 {[%emt 0:10:38]} 2. d4 {[%emt 0:00:09]} Bg7 {[%emt 0:00:08]} 3. Nc3 {[%emt 0:00:17]} d6 {[%emt 0:00:35]} 4. Be3 {[%emt 0:00:27]} a6 {[%emt 0:00:39]} 5. Nf3 {[%emt 0:00:51]} b5 {[%emt 0:00:58]} 6. h4 {[%emt 0:00:55]} h6 {[%emt 0:04:00]} 7. e5 {[%emt 0:01:52]} e6 {[%emt 0:02:04]} 8. a4 {[%emt 0:02:40]} b4 {[%emt 0:01:08]} 9. Ne4 {[%emt 0:00:06]} Bb7 {[%emt 0:02:36]} 10. Bd3 {[%emt 0:00:07]} Ne7 {[%emt 0:10:22]} 11. Qe2 {[%emt 0:00:47]} Nd5 {[%emt 0:10:43]} 12. Rd1 {[%emt 0:00:37]} Qe7 {[%emt 0:03:44]} 13. c4 {[%emt 0:32:21]} bxc3 {[%emt 0:03:27]} 14. bxc3 {[%emt 0:00:01]} Nd7 {[%emt 0:01:42]} 15. Bd2 {[%emt 0:06:58]} dxe5 {[%emt 0:07:02]} 16. Nxe5 {[%emt 0:02:05]} Bxe5 {[%emt 0:15:19]} 17. dxe5 {[%emt 0:00:07]} Nxe5 {[%emt 0:00:15]} 18. Bc2 {[%emt 0:03:58]} O-O-O {[%emt 0:04:09]} 19. Rb1 {[%emt 0:00:56]} f5 {[%emt 0:11:15]} 20. Ng3 {[%emt 0:01:13]} Qd6 {[%emt 0:01:12]} 21. O-O {[%emt 0:03:08]} Nb6 {[%emt 0:03:52]} 22. Bf4 {[%emt 0:08:14]} Qd5 {[%emt 0:01:22]} 23. f3 {[%emt 0:00:51]} Nec4 {[%emt 0:00:02]} 24. a5 {[%emt 0:05:09]} e5 {[%emt 0:08:47]} 25. Bxe5 {[%emt 0:03:25]} Rhe8 {[%emt 0:00:01]} 26. axb6 {[%emt 0:03:01]} Rxe5 {[%emt 0:00:02]} 27. Qf2 {[%emt 0:00:47]} Qc5 {[%emt 0:03:12]} 28. bxc7 {[%emt 0:03:07]} Rd2 {[%emt 0:00:52]} 29. Qxc5 {[%emt 0:00:14]} Rxc5 {[%emt 0:00:01]} 30. Bb3 {[%emt 0:07:05]} Nd6 {[%emt 0:02:02]} 31. Rfe1 {[%emt 0:01:19]} Rxc7 {[%emt 0:00:40]} 32. Re6 {[%emt 0:03:05]} Rg7 {[%emt 0:01:25]} 33. c4 {[%emt 0:02:25]} Kc7 {[%emt 0:00:26]} 34. Nf1 {[%emt 0:04:05]} Rd4 {[%emt 0:00:40]} 35. Ne3 {[%emt 0:00:11]} Kd7 {[%emt 0:01:34]} 36. c5 {[%emt 0:00:50]} Nb5 {[%emt 0:00:05]} 37. h5 {[%emt 0:01:58]} Rb4 {[%emt 0:01:16]} 38. Rxg6 {[%emt 0:00:37]} Re7 {[%emt 0:00:34]} 39. Nxf5 {[%emt 0:00:25]} Re5 {[%emt 0:00:37]} 40. Be6+ {[%emt 0:00:16]} Rxe6 {[%emt 0:00:06]} 41. Rxb4 {[%emt 0:50:04]} Re1+ {[%emt 0:50:05]} 42. Kf2 {[%emt 0:00:24]} 1-0